Cogmind - Beta 13 @@@ ROGUE MODE // 2024.04.09 @ 01:19:46 Player: GregoriusTechneticies Result: Destroyed by S-10 Pest with Light Assault Rifle Performance ------------- Evolutions (0) 0 Regions Visited (4) 800 Robots Destroyed (66) 330 Value Destroyed (585) 585 Prototype IDs (1) 20 Alien Tech Used (0) 0 Bonus (300) 300 TOTAL SCORE: 2035 Bonus ------- Aligned with FarCom 300 Cogmind --------- Core Integrity 0/250 Matter 300/300 Energy 125/125 System Corruption 0% Temperature Cool (0) Movement Core (150) Ox2 Location -9/Mines Parts ------- > --- POWER (1) -------- Light Ion Engine > --- PROPULSION (2) --- (None) > --- UTILITY (2) ------ Signal Interpreter Modified TNC > --- WEAPON (2) ------- Hammer Hammer > --- INVENTORY (5) ---- Sensor Array Improved Terrain Scanner Terrain Scan Processor Rocket Launcher Mining Laser Peak State ------------ > --- POWER ------------ Light Ion Engine > --- PROPULSION ------- Wheel Wheel > --- UTILITY ---------- Signal Interpreter Modified TNC > --- WEAPON ----------- Hammer Hammer > --- INVENTORY -------- Sensor Array Improved Terrain Scanner Terrain Scan Processor Rocket Launcher [Rating: 12] Favorites ----------- Power Light Ion Engine Engine Light Ion Engine Propulsion Wheel Wheel Wheel Utility Signal Interpreter Device Improved Terrain Scanner Processor Signal Interpreter Weapon Assault Rifle Energy Gun Small Laser Ballistic Gun Assault Rifle Launcher Rocket Launcher Special Weapon Mining Laser Impact Weapon Hammer Build | -11 -10 -10 -10 -9 ------- Run | Yrd Mat Min Exi Min Slots Evolved . | . . . . . Power . | . . . . . Propulsion . | . . . . . Utility . | . . . . . Weapon . | . . . . . Parts Attached 54 | 20 26 3 2 3 Power 10 | 2 7 . . 1 Engine 10 | 2 7 . . 1 Core . | . . . . . Reactor . | . . . . . Propulsion 22 | 11 7 3 . 1 Treads . | . . . . . Leg . | . . . . . Wheel 22 | 11 7 3 . 1 Hover . | . . . . . Flight . | . . . . . Utility 8 | 3 4 . . 1 Device 5 | 3 2 . . . Storage . | . . . . . Processor 3 | . 2 . . 1 Hackware . | . . . . . Protection . | . . . . . Artifact . | . . . . . Weapon 14 | 4 8 . 2 . Energy Gun 2 | 2 . . . . Energy Cannon . | . . . . . Ballistic Gun 7 | 2 5 . . . Ballistic Cannon . | . . . . . Launcher 1 | . . . 1 . Special Weapon 1 | . 1 . . . Impact Weapon 3 | . 2 . 1 . Slashing Weapon . | . . . . . Piercing Weapon . | . . . . . Special Melee Weapon . | . . . . . Unidentified Prototypes 1 | . . . . 1 Parts Lost 7 | 1 3 . . 3 Power 3 | 1 1 . . 1 Propulsion 3 | . 1 . . 2 Utility . | . . . . . Weapon 1 | . 1 . . . Highest Loss Streak 2 | 1 1 . . 2 To Critical Strikes . | . . . . . Average Slot Usage (%) 98 | . 97 100 100 94 Engine 12 | . 13 14 14 9 Wheel 27 | . 27 28 28 27 Device 1 | . 6 . . . Processor 26 | . 21 28 28 28 Ballistic Gun 2 | . 9 . . . Impact Weapon 24 | . 16 28 26 28 Naked Turns . | . . . . . Heaviest Build 9 | 8 8 7 9 7 Greatest Support 32 | 32 20 26 20 20 Greatest Overweight (x) 2 | . . . . 2 Average Overweight (x) . | . . . . . Largest Inventory Capacity 5 | 5 5 5 5 5 Average Capacity 5 | 5 5 5 5 5 Most Carried 5 | 5 5 5 5 5 Average Carried 2 | 1 4 4 4 4 Final Capacity 5 | 5 5 5 5 5 Final Carried 5 | 5 5 5 5 5 Class Distribution -------------------- 96% | Scavenger-Mutant 3% | Mutant Dominant Class ---------------- Scavenger-Mutant | -10/Materials Scavenger-Mutant | -10/Mines Scavenger-Mutant | -10/Exiles Mutant | -9/Mines Resources | -11 -10 -10 -10 -9 ----------- Run | Yrd Mat Min Exi Min Matter Collected 1235 | 542 404 30 229 30 Remotely . | . . . . . Salvage Created 1547 | 287 570 370 . 320 Parts 87 | 18 51 10 . 8 Haulers Intercepted 1 | . 1 . . . Recyclers Shooed 3 | . 1 1 . 1 Parts Field Recycled . | . . . . . Retrieved Matter . | . . . . . Parts Self-Destructed . | . . . . . Prevented . | . . . . . Kills | -11 -10 -10 -10 -9 ------- Run | Yrd Mat Min Exi Min Combat Hostiles Destroyed 16 | 3 9 1 . 3 Melee 4 | . . 1 . 3 Guns 12 | 3 9 . . . Classes Destroyed 9 | 4 5 . . . Worker 14 | 2 2 5 . 5 Builder 14 | . 5 5 . 4 Tunneler 19 | 8 1 4 . 6 Hauler 1 | . 1 . . . Recycler 3 | 1 . 1 . 1 Watcher 3 | . 3 . . . Swarmer 6 | . 3 . . 3 Grunt 6 | . 6 . . . Assembled 4 | 3 . 1 . . Best Kill Streak 7 | 6 5 4 . 7 Combat Bots Only 2 | 2 2 1 . 2 Max Kills in Single Turn 1 | 1 1 1 . 1 Gunslinging . | . . . . . Exploded . | . . . . . Melee 1 | . . 1 . 1 Uniques/NPCs Destroyed . | . . . . . Combat | -11 -10 -10 -10 -9 -------- Run | Yrd Mat Min Exi Min Hostile Shots Fired 132 | 20 61 2 . 49 Missed 33 | 6 15 . . 12 Damage Taken 1042 | 214 514 23 . 291 Core 250 | 39 90 13 . 108 Absorbed by Shields . | . . . . . Core Remaining (%) 84 | 84 . . . . Volleys Fired 128 | 49 60 . 19 . Largest 2 | 2 2 . 1 . Hottest 100 | 60 100 . 33 . Shots Fired 228 | 91 118 . 19 . Gun 207 | 91 116 . . . Cannon . | . . . . . Launcher 19 | . . . 19 . Special 2 | . 2 . . . Kinetic 156 | 49 107 . . . Thermal 53 | 42 11 . . . Explosive 19 | . . . 19 . Electromagnetic . | . . . . . Robot Hit Streak 8 | 6 8 . . . Robot Miss Streak 4 | 3 4 . . . Penetration Max . | . . . . . Secondary Targets 3 | . 3 . . . Max Gunslinging Chain 1 | . 1 . . . Shots Hit Robots 174 | 48 68 22 . 36 Core Hits 61 | 17 35 5 . 4 Critical Kills 4 | 1 . 2 . 1 Critical Parts Destroyed 8 | 1 2 2 . 3 Critical Strikes 12 | 2 2 4 . 4 Destroy 4 | 2 2 . . . Smash 8 | . . 4 . 4 Melee Attacks 118 | . 25 38 4 51 Impact 118 | . 25 38 4 51 Slashing . | . . . . . Piercing . | . . . . . Sneak Attacks 42 | . 2 19 . 21 Combat Hostiles . | . . . . . Follow-up Attacks 9 | . . 2 . 7 Damage Inflicted 3906 | 565 750 1114 . 1477 Guns 1204 | 565 639 . . . Cannons . | . . . . . Explosions . | . . . . . Melee 2702 | . 111 1114 . 1477 Ramming . | . . . . . Kinetic 846 | 296 550 . . . Thermal 358 | 269 89 . . . Explosive . | . . . . . Electromagnetic . | . . . . . Impact 2702 | . 111 1114 . 1477 Slashing . | . . . . . Piercing . | . . . . . Highest Corruption . | . . . . . Average Corruption . | . . . . . Corruption Purged . | . . . . . Corruption Blocked . | . . . . . Overload Shots . | . . . . . Overflow Damage 950 | . 30 406 . 514 Projectiles . | . . . . . Explosions . | . . . . . Melee 950 | . 30 406 . 514 Knockbacks 8 | . . 3 . 5 Impact 8 | . . 3 . 5 Kinetic . | . . . . . Secondary . | . . . . . Self-Inflicted Damage . | . . . . . Shots . | . . . . . Rammed . | . . . . . Targets Rammed . | . . . . . Kicked . | . . . . . Crushed . | . . . . . Highest Temperature 53 | . 53 . . . Average Temperature 19 | . 19 . . . Received Heat Transfer 228 | . 228 . . . Siege Activations . | . . . . . Robots Corrupted . | . . . . . Combat Hostiles . | . . . . . Parts Fried 36 | . 2 21 . 13 Impact Corruptions 47 | . 2 18 . 27 Robots Melted . | . . . . . Combat Hostiles . | . . . . . Parts Melted . | . . . . . Heat Transferred 800 | 600 200 . . . Parts Sabotaged . | . . . . . Parts Stolen . | . . . . . Parts Stripped . | . . . . . Power Chain Reactions . | . . . . . Alert | -11 -10 -10 -10 -9 ------- Run | Yrd Mat Min Exi Min Peak Influence 409 | 50 409 122 . 70 Initial 47 | . 32 47 . . Average 20 | 6 175 62 . 33 Maximum Alert Level 2 | . 2 . . . Low Security (%) 97 | 100 66 100 . 100 Level 1 1 | . 23 . . . Level 2 . | . 9 . . . Level 3 . | . . . . . Level 4 . | . . . . . Level 5 . | . . . . . High Security . | . . . . . Max Security . | . . . . . Squads Dispatched 2 | . 1 . . 1 Investigation 1 | . 1 . . . Extermination . | . . . . . Reinforcement 1 | . . . . 1 Assault . | . . . . . Garrison . | . . . . . Intercept . | . . . . . Searches Triggered . | . . . . . Construction Impeded 1 | . . . . 1 Haulers Reinforced . | . . . . . Active Scanning Responses . | . . . . . Cargo Convoy Interrupts . | . . . . . Stealth | -11 -10 -10 -10 -9 --------- Run | Yrd Mat Min Exi Min Distress Signals 3 | . 2 . . 1 Communications Jammed . | . . . . . Distress Signals . | . . . . . Times Spotted 29 | 3 18 1 . 7 Peak Tracking Total 5 | 1 5 1 . 4 Tactical Retreats 5 | . 4 . . 1 Traps | -11 -10 -10 -10 -9 ------- Run | Yrd Mat Min Exi Min Traps Triggered . | . . . . . Indirectly . | . . . . . Trap Hack Attempts . | . . . . . Triggered . | . . . . . Disarmed . | . . . . . Reprogrammed . | . . . . . Reused . | . . . . . Traps Extracted . | . . . . . Installed . | . . . . . Triggered . | . . . . . Machines | -11 -10 -10 -10 -9 ---------- Run | Yrd Mat Min Exi Min Machines Disabled 3 | . . . 2 1 Max in Single Turn 1 | . . . 1 . Machines Repaired . | . . . . . Machines Dismantled . | . . . . . Machines Sabotaged . | . . . . . Overloaded Fab Kills . | . . . . . Hacking | -11 -10 -10 -10 -9 --------- Run | Yrd Mat Min Exi Min Machines Accessed 11 | . 7 . 4 . Terminals 4 | . 4 . . . Fabricators . | . . . . . Repair Stations 1 | . 1 . . . Recycling Units 2 | . 2 . . . Scanalyzers . | . . . . . Garrison Access . | . . . . . Total Hacks 69 | . 20 . 49 . Successful 62 | . 13 . 49 . Failed 7 | . 7 . . . Catastrophic 2 | . 2 . . . Database Lockouts . | . . . . . Manual 21 | . 17 . 4 . Terminals 11 | . 11 . . . Fabricators . | . . . . . Repair Stations 2 | . 2 . . . Recycling Units 7 | . 7 . . . Scanalyzers . | . . . . . Garrison Access . | . . . . . Terminal Hacks 50 | . 1 . 49 . Record 49 | . . . 49 . Unreport Threat 1 | . 1 . . . Fabricator Hacks . | . . . . . Repair Station Hacks 1 | . 1 . . . Refit 1 | . 1 . . . Recycling Unit Hacks 1 | . 1 . . . Retrieve Components 1 | . 1 . . . Scanalyzer . | . . . . . Garrison Access Hacks . | . . . . . Unauthorized Hacks 10 | . 10 . . . Terminals 4 | . 4 . . . Botnet 4 | . 4 . . . Fabricators . | . . . . . Repair Stations . | . . . . . Recycling Units 6 | . 6 . . . Monitor 2 | . 2 . . . Reject 2 | . 2 . . . Recyclers 2 | . 2 . . . Scanalyzers . | . . . . . Garrison Access . | . . . . . Data Cores Recovered . | . . . . . Used . | . . . . . Hacking Detections 6 | . 6 . . . Full Trace Events 1 | . 1 . . . Feedback Events . | . . . . . Feedback Blocked . | . . . . . Robot Schematics Acquired . | . . . . . Robots Built . | . . . . . Authchips . | . . . . . Time . | . . . . . Total Robot Build Rating . | . . . . . Part Schematics Acquired . | . . . . . Parts Built . | . . . . . Authchips . | . . . . . Time . | . . . . . Total Part Build Rating . | . . . . . Parts Repaired . | . . . . . Time . | . . . . . Parts Recycled . | . . . . . Recycled Matter . | . . . . . Retrieved Matter . | . . . . . Retrieved Components 10 | . 10 . . . Parts Scanalyzed . | . . . . . Part Schematics Acquired . | . . . . . Parts Damaged . | . . . . . Bothacking | -11 -10 -10 -10 -9 ------------ Run | Yrd Mat Min Exi Min Used RIF Installer . | . . . . . Robots Hacked . | . . . . . Non-combat . | . . . . . Combat . | . . . . . Robot Hacks Applied . | . . . . . Relay Couplers Released . | . . . . . Fabnet Peak Effective % . | . . . . . Robots Rewired . | . . . . . Allies Hacked . | . . . . . Hacks Repelled . | . . . . . Allies | -11 -10 -10 -10 -9 -------- Run | Yrd Mat Min Exi Min Total Allies 3 | . . . . 3 Largest Group 2 | . . . . 2 Highest-Rated Group 43 | . . . . 43 Highest-Rated Ally 31 | . . . . 31 Total Orders . | . . . . . Ally Attacks 10 | . . . . 10 Total Damage 42 | . . . . 42 Kills . | . . . . . Allies Corrupted . | . . . . . Allies Melted . | . . . . . Intel | -11 -10 -10 -10 -9 ------- Run | Yrd Mat Min Exi Min Robot Analysis Total . | . . . . . Derelict Logs Recovered 3 | . . 1 . 2 Drone Launches . | . . . . . Drone Recoveries . | . . . . . Exploration | -11 -10 -10 -10 -9 ------------- Run | Yrd Mat Min Exi Min Turns Passed 12777 | 10009 743 499 791 735 Spaces Moved 4134 | 1598 541 476 897 622 Core 8 | 3 . . . 5 Treads . | . . . . . Legs . | . . . . . Wheels 4126 | 1595 541 476 897 617 Hover . | . . . . . Flight . | . . . . . Fastest Speed 50 | 50 80 80 80 80 Average Speed 80 | 81 80 82 80 80 Slowest Speed 150 | 100 80 90 80 150 Overloaded Moves . | . . . . . Propulsion Burnouts . | . . . . . Robots Hopped . | . . . . . Cave-ins Triggered . | . . . . . Exploration Rate (%) 85 | 105 73 76 95 80 Regions Visited 4 Branch Regions 3 Pre-discovered Areas 3 | . . 2 1 . Known Exits Taken 3 | . 1 1 1 . Unknown Exits Taken 1 | 1 . . . . Scrap Searched 3 | . . 2 . 1 Spaces Dug 76 | . 17 . 53 6 Terrain Destroyed 161 | . 17 . 138 6 Melee 23 | . 15 . 2 6 Projectile 2 | . 2 . . . AOE 136 | . . . 136 . Terrain Rammed . | . . . . . Walls Destroyed . | . . . . . Machines Disabled . | . . . . . Actions | -11 -10 -10 -10 -9 --------- Run | Yrd Mat Min Exi Min Total 13180 | 10219 713 523 945 780 Wait 8692 | 8527 27 5 23 110 Move 4130 | 1597 540 475 896 622 Hop . | . . . . . Pick Up 31 | 16 12 1 1 1 Fast Attach 7 | 2 3 1 . 1 Attach 11 | 8 2 . . 1 Detach 2 | 2 . . . . Swap 36 | 10 21 2 2 1 Drop 41 | 8 26 4 1 2 Fire 128 | 49 60 . 19 . Melee 102 | . 22 35 3 42 Ram . | . . . . . Kick . | . . . . . Crush . | . . . . . Escape Stasis . | . . . . . Rewire . | . . . . . Trap . | . . . . . Miscellaneous . | . . . . . Route ------- -11/Scrapyard -10/Materials (discovered 3 exits: *Mat x2 / *Min) -10/Mines (discovered 2 exits: *Mat / *Exi) -10/Exiles (discovered 2 exits: *Min x2) -9/Mines (discovered 2 exits: *Mat x2) History --------- Turn | Location | Event 10 | -11/Scrapyard | Discovered new exit (range 16) 8596 | -11/Scrapyard | Assembled infested the area 10010 | -11/Scrapyard | Entered Materials 10011 | -10/Materials | Build established: Scavenger-Mutant 10390 | -10/Materials | Discovered new exit (range 17) 10439 | -10/Materials | Discovered new exit (range 15) 10543 | -10/Materials | Core integrity fell below 50% 10747 | -10/Materials | Discovered new exit (range 6) 10753 | -10/Materials | Identified exit to Mines 10753 | -10/Materials | Entered Mines 10857 | -10/Mines | Learned location of Zion (-7) 10933 | -10/Mines | Received a Rocket Launcher from a helpful Derelict 10969 | -10/Mines | Learned location of Storage (-8) 11114 | -10/Mines | Discovered new exit (range 7) 11122 | -10/Mines | Identified exit to Materials 11182 | -10/Mines | Excavation squad dispatched 11182 | -10/Mines | A large section of the Mines collapsed 11248 | -10/Mines | Deemed a non-threat by the Exiles lab entrance 11248 | -10/Mines | Discovered new exit (range 5) 11251 | -10/Mines | Identified exit to Exiles 11252 | -10/Mines | Entered Exiles 11280 | -10/Exiles | Discovered new exit (range 14) 11289 | -10/Exiles | Identified exit to Mines 11401 | -10/Exiles | Met 8R-AWN 11417 | -10/Exiles | Met EX-HEX 11447 | -10/Exiles | Met EX-DEC 11505 | -10/Exiles | Discovered exit to Mines (range 14) 11567 | -10/Exiles | Visited The Gauntlet 11716 | -10/Exiles | Met EX-BIN 11779 | -10/Exiles | Aligned with FarCom system 11780 | -10/Exiles | Given EX-Vault access code 11799 | -10/Exiles | Opened EX-Vault 11805 | -10/Exiles | Found Prototype Processor 11824 | -10/Exiles | Warned to stay clear of 0b10 Research branches 12043 | -10/Exiles | Left Exiles lab with Modified TNC 12043 | -10/Exiles | Entered Mines 12046 | -9/Mines | Received a Mining Laser from a helpful Derelict 12069 | -9/Mines | Identified Modified TNC 12235 | -9/Mines | Core integrity fell below 20% 12270 | -9/Mines | Discovered new exit (range 10) 12277 | -9/Mines | Identified exit to Materials 12328 | -9/Mines | Learned Materials terminal intel 12342 | -9/Mines | Learned Materials emergency access door positions 12357 | -9/Mines | Build established: Mutant 12470 | -9/Mines | Discovered exit to Materials (range 7) 12778 | -9/Mines | Destroyed by S-10 Pest with Light Assault Rifle Last Messages --------------- crushing effect. 12718_ T-07 Excavator system terminally corrupted. 12718_ Imp. Terrain Scanner fried. 12720_ K-01 Serf collects debris. 12723_ Sneak attack on K-01 Serf. 12723_ Destroyed Wheel. 12723_ K-01 Serf system corrupted by crushing effect. 12723_ K-01 Serf knocked back. 12723_ K-01 Serf sends out distress signal. 12724_ K-01 Serf system terminally corrupted. 12733_ U5-QM1(g) destroyed. 12745_ 3W-TB4(z) destroyed. 12753_ Wheel destroyed. 12773_ S-10 Pest suffers critical hit (Smash). 12773_ Destroyed Flight Unit. 12773_ S-10 Pest system corrupted by crushing effect. 12773_ S-10 Pest destroyed. Map ----- +----------------------------------------------------+ | # #????????# #? | | #################### ##?????????# #? | | ???????????????????# ############ ## #? | | ???????????????????# % ## ## #? | | ???????????????????# ####### ### #? | | ???????????????????# #?????# % ##### ## | | ???????????????????# #?????# ##??# # | | ???????????????????# #?????## = #???# # | | ????????????????#### #??????# % ## ##??## # | | ????????????????# #??????# | ######???# # | | ????????????????# ###??????## ##??????## # | | ????????????????# #####?????# #????### # | | ????????????????# # ##????# #???## ## | | ????????????????# #????# ##### #? | | ???????????????## #????# #? | | ???????????????# ##????## ##? | | ???????????????# ##??????## ###### ##?? | | ?????????????? ##????????####????## ##??? | | ????????????# ### #?######???????????## #???? | | ????????????#???## ##?####"########?????# ##??? | | ??????????????#######??## # #????## ###? | | ??????????????? #?????# !! #???## ## | | ???????????????# #?????## % !!!! #???# # | | ???????????????# ###????# ### ! ! #???# # | | ???????????????# ##???# #?# ! !! #???## ## | | ???????????????# #####@#?# #????## ##? | | ???????????????# ss #?## #?????## #?? | | ??????????????## ######??## ##??????# #?? | | ?????#####???## ##????????#####???????# ##?? | | ????## ##### ##??????????????####?## ##??? | | ???## ##????????????## ### ##???? | | #??# ##??????????## #????? | | #??# ### #??????????# #????? | | #### #?# #?????????## ##????? | | ##?# ##????????## ##?????? | | ### ##??## ######?????????# !%##??????? | | ### ##????####????????####### ! #???????? | | #?????????????????# %| ##??????? | | % ##?????????????????# ######## #??????? | | ## ##??????????????????# #??????## #??????? | | ## #???????????????????# #???????### ##??????? | | # ##???????????######## #?????????## #???????? | | #???????????# ## ####???????# #???????? | | #???????????# #?# # ## ##??##### #???????? | | % ############# ### #??# #???????? | | % ! < #??# ####???????? | | ## % | [ ## ##?# #??????????? | | #####################%] ## ### #??????????? | | #??????????????????#%* ## ## #??????????? | | ##??????????????? ### #??????????? | +----------------------------------------------------+ Best States ------------- Heat Dissipation 25 Energy Generation 10 Energy Capacity 125 Matter Stores 300 Matter Capacity 300 Sight Range 18 Terrain Scan Range 16 Terrain Scan Density 10 Evasion (%) 44 Item Schematics ----------------- None Robot Schematics ------------------ None Fabricated ------------ Nothing Alien Tech Used ----------------- None Achievements -------------- Curiosity Killed The Cat Challenges ------------ None Game ------ Seed ProtonDispersionFrame Manual? 0 Play Time 01:20:26 Cumulative 18.3 hours Start 2024.04.08 @ 23:27:16 End 2024.04.09 @ 01:19:46 Sessions 1 Manual Loads 0 Difficulty Rogue Special Mode None Game No. 18 Rogue 3 Adventurer 0 Explorer 15 Win Type - Total 0 Types 0/0/0/0/0/0/0/0/0 Lore% 13 Gallery% 23 Achievement% 18 Wizard Run 0 Options --------- Layout 1 ASCII 0 Keyboard 0 Movement Mouse Keybinds 0 Fullscreen 1 Font 24/Smallcaps Map View 50x35 Zoom Use 0% Tactical HUD 1 Map Filters NONE Filters NONE Steam 1 RUN: 220c1c92-07fd-4884-adc8-9aef0743149e